[Event "CIS Master Groups 2024"]
[Site "Vasto"]
[Date "2024.04.10"]
[Round "4.19"]
[White "Damia, Angelo"]
[Black "Pescatore, Lorenzo"]
[Result "0-1"]
[ECO "B38"]
[WhiteElo "2234"]
[BlackElo "2358"]
[Annotator "TA"]
[PlyCount "92"]
[EventDate "2024.04.07"]
[EventType "team-tourn"]
[EventCountry "ITA"]
[SourceTitle "playchess.com"]
[Source "ChessBase"]
[SourceQuality "1"]
[TimeControl "40/5400+30:900+30"]

{[%evp 21,92,37,35,11,11,12,13,-10,-13,-14,-16,-21,-24,-11,-9,-11,-11,-30,-14,-47,-21,-26,-4,-5,0,-14,0,-16,-1,-7,-16,-10,0,-69,-47,-187,-202,-220,-226,-208,-187,-197,-215,-223,-144,-472,-476,-448,-463,-620,-632,-618,-580,-534,-529,-522,-534,-520,-535,-503,-495,-533,-533,-581,-601,-620,-337,-900,-1421,-1135,-831,-29993,-29994]} 1. e4 {[%emt 0:00:03]} c5 {[%emt 0:00:10]} 2. Nf3 {[%emt 0:00:02]} Nc6 {[%emt 0:00:13]} 3. d4 {[%emt 0:00:25]} cxd4 {[%emt 0:00:08]} 4. Nxd4 {[%emt 0:00:05]} g6 {[%emt 0:00:11]} 5. c4 {[%emt 0:01:19]} Bg7 {[%emt 0:00:17]} 6. Be3 {[%emt 0:00:11]} Nf6 {[%emt 0:00:15]} 7. Nc3 {[%emt 0:03:14]} O-O {[%emt 0:00:10]} 8. Be2 {[%emt 0:08:03]} d6 {[%emt 0:00:14]} 9. f3 {[%emt 0:05:09]} Nxd4 {[%emt 0:15:49]} 10. Bxd4 {[%emt 0:00:07]} Be6 {[%emt 0:00:05]} 11. Qd2 {[%emt 0:12:30]} Qa5 {[%emt 0:05:30]} 12. Rc1 {[%emt 0:03:55]} Rfc8 {[%emt 0:04:16]} 13. b3 {[%emt 0:08:31]} a6 {[%emt 0:11:06][%cal Ob7b5]} 14. Na4 {[%emt 0:03:18] The position is equal.} (14. Be3 {simplifies} b5 15. Nd5 Qxd2+ 16. Kxd2 Nxd5 17. cxd5 Bd7 18. g4) 14... Qxd2+ {[%emt 0:16:09]} 15. Kxd2 {[%emt 0:00:04] [#]} Nxe4+ $1 {[%emt 0:21:57]} 16. Ke3 $1 {[%emt 0:00:04] Bxg7 is the strong threat.} Bh6+ {[%emt 0:00:05]} 17. f4 $1 {[%emt 0:00:05]} (17. Kxe4 Bf5+ (17... d5+ 18. Kd3 $16) 18. Kd5 e6+ 19. Kxd6 Rc6+ 20. Ke5 f6+ (20... Bg7+ 21. Kf4 $17) 21. Kxf6 Rf8+ 22. Ke7 Bg5+) 17... f5 {[%emt 0:00:46] ...Bf7 would now be deadly.} 18. Nb6 {[%emt 0:04:49][%csl LRa8,LRc8][%cal Oe2f3] [#]} Bf7 $1 {[%emt 0:00:07][%cal Oe7e5] aiming for ...e5!} 19. Kf3 {[%emt 0:11:46] [#]} (19. Kd3 Bxf4) 19... e5 $1 {[%emt 0:08:18] Against g3} 20. Nxc8 {[%emt 0:20:20]} (20. fxe5 dxe5) 20... Rxc8 {[%emt 0:00:11]} (20... exd4 {is interesting.} 21. Nb6 Re8 22. g3 Nc3) 21. fxe5 {[%emt 0:00:34]} Nd2+ {[%emt 0:05:46]} 22. Kf2 $1 {[%emt 0:03:50] Strongly threatening Bd3.} Ne4+ {[%emt 0:00:08]} 23. Kf3 {[%emt 0:00:06]} Nd2+ {[%emt 0:06:16]} 24. Kf2 $1 {[%emt 0:00:01]} dxe5 {[%emt 0:00:06]} 25. Be3 $1 {[%emt 0:01:32]} Ne4+ {[%emt 0:00:05]} 26. Kf3 {[%emt 0:00:01]} g5 {[%emt 0:00:37][%csl Gf5][%cal Rg5g4]} 27. g4 {[%emt 0:00:01]} ({White should play} 27. Bd3 $11 Nd6 (27... Bh5+ 28. g4 $11) 28. c5 e4+ 29. Kf2) 27... Nf6 $1 $15 {[%emt 0:00:18][%mdl 1024] Black has compensation.} 28. h4 {[%emt 0:05:19] [#]} (28. gxf5 $2 {perishes.} g4+ 29. Kf2 Ne4+ 30. Kg2 Bxe3 $19) (28. Bd2 $15) 28... f4 $1 $19 {[%emt 0:00:42]} 29. Ba7 {[%emt 0:02:34]} ({Avoid the trap} 29. hxg5 $2 Bxg5 30. Bf2 e4+ 31. Kg2 f3+ 32. Bxf3 exf3+ (32... Bxc1 $2 33. Rxc1 exf3+ 34. Kxf3 $19) 33. Kxf3 Bd5+ (33... Bxc1 $2 34. Rxc1 Bd5+ 35. Kf4 $19) 34. cxd5 Rxc1 $19 (34... Bxc1 $2 35. Bd4 $19)) 29... e4+ {[%emt 0:01:00]} 30. Kf2 {[%emt 0:00:01]} f3 {[%emt 0:00:43]} 31. Bxf3 {[%emt 0:04:45]} exf3 {[%emt 0:00:05]} 32. Kxf3 {[%emt 0:00:05]} gxh4 {[%emt 0:00:55][%cal Of7d5] And now ...Bd5+! would win.} 33. g5 $2 {[%emt 0:00:01][%mdl 8192] White does not recover from this.} (33. Be3 $17 {nothing else works.} Bxe3 34. Kxe3) 33... Bxg5 {[%emt 0:00:42]} 34. Rcg1 {[%emt 0:00:08]} Bh5+ {[%emt 0:01:07]} 35. Kf2 {[%emt 0:00:01]} Ne4+ {[%emt 0:00:52]} 36. Kg2 {[%emt 0:00:16]} Bg4 {[%emt 0:01:30] Hoping for ...Rd8.} 37. Re1 {[%emt 0:00:20]} h3+ {[%emt 0:00:53]} 38. Rxh3 {[%emt 0:00:17]} Bxh3+ {[%emt 0:00:07]} 39. Kxh3 {[%emt 0:00:02]} Re8 {[%emt 0:00:32]} 40. b4 {[%emt 0:00:44]} h6 {[%emt 0:00:24]} 41. a4 {[%emt 0:15:14]} Bd2 {[%emt 0:15:54][%csl LRb4,LRe1]} 42. Rg1+ {[%emt 0:00:13]} Ng5+ {[%emt 0:00:12]} 43. Kg4 {[%emt 0:00:06]} Be3 {[%emt 0:00:54]} 44. Re1 $2 {[%emt 0:00:19]} (44. Bxe3 Rxe3 45. Kf5) 44... Re4+ {[%emt 0:00:10]} 45. Kf5 {[%emt 0:00:44]} Bxa7 {[%emt 0:00:55]} 46. Re3 {[%emt 0:00:06]} Bxe3 {[%emt 0:00:13] Weighted Error Value: White=0.31/Black=0.09 (flawless) .  Loses game:     	White=1     	---        Mistake:       	White=2     	---        Inaccurate:     	White=2     	Black=3      OK:         	White=5     	Black=15     Best:        	White=6     	Black=2      Strong:       	White=5     	Black=2} 0-1

[Event "CIS Master Groups 2024"]
[Site "Vasto"]
[Date "2024.04.10"]
[Round "4.20"]
[White "Petcu, Gabriel"]
[Black "Calavalle, Giulio"]
[Result "1-0"]
[ECO "D46"]
[WhiteElo "1968"]
[BlackElo "2152"]
[Annotator "TA"]
[PlyCount "53"]
[EventDate "2024.04.07"]
[EventType "team-tourn"]
[EventCountry "ITA"]
[SourceTitle "playchess.com"]
[Source "ChessBase"]
[SourceQuality "1"]
[TimeControl "40/5400+30:900+30"]

{[%evp 15,53,2,75,70,67,66,69,11,20,36,39,9,54,56,53,61,52,38,126,127,127,132,183,167,165,208,213,201,181,128,130,143,181,49,295,293,289,283,684,677]} 1. d4 {[%emt 0:00:02]} Nf6 {[%emt 0:00:17]} 2. c4 {[%emt 0:00:07]} e6 {[%emt 0:00:09]} 3. Nf3 {[%emt 0:00:10]} d5 {[%emt 0:00:23]} 4. Nc3 {[%emt 0:00:13]} c6 {[%emt 0:00:36]} 5. e3 {[%emt 0:00:08][%cal Be2e3,Be3e4][%mdl 32]} Nbd7 {[%emt 0:00:36]} 6. Bd3 {[%emt 0:00:41]} Bd6 {[%emt 0:09:12]} 7. O-O {[%emt 0:11:44]} O-O {[%emt 0:02:36]} 8. Re1 {[%emt 0:02:44]} Re8 {[%emt 0:13:33]} (8... dxc4 $11 9. Bxc4 e5) 9. e4 $16 {[%emt 0:05:51]} dxc4 {[%emt 0:03:20]} 10. Bxc4 {[%emt 0:03:47]} e5 {[%emt 0:18:23]} 11. Bg5 {[%emt 0:27:12]} (11. Ng5 $14 Re7 12. f4) 11... h6 {[%emt 0:03:36]} 12. Bh4 {[%emt 0:01:06]} Qe7 {[%emt 0:14:09]} 13. Bg3 {[%emt 0:03:26]} g6 {[%emt 0:09:57]} 14. Qb3 {[%emt 0:04:24] Strongly threatening dxe5.} Kg7 {[%emt 0:08:59]} 15. Rad1 {[%emt 0:06:41]} Bb8 {[%emt 0:06:54]} 16. a4 {[%emt 0:04:15]} exd4 {[%emt 0:00:59]} (16... Ng4 $14) 17. e5 $1 {[%emt 0:02:02] White is much more active.} (17. Nxd4 Bxg3 (17... Nc5 18. Qc2 $16) 18. hxg3 Ne5 $11) (17. Rxd4 $6 Ne5 $11) 17... Nh5 {[%emt 0:03:08] [#] White must now prevent ...Nc5.} 18. e6 $1 {[%emt 0:07:36]} fxe6 {[%emt 0:02:03]} (18... Nc5 $16 {was worth a try.} 19. exf7 Qxf7 (19... Qxe1+ $2 20. Nxe1 Rf8 21. Qa3 $18)) 19. Rxe6 $18 {[%emt 0:00:14]} (19. Nxd4 Nc5 20. Qc2 Nxg3 21. fxg3 e5 $11) 19... Qf8 {[%emt 0:00:35] ...Rxe6 is the strong threat.} 20. Nxd4 {[%emt 0:01:15] Threatens to win with Bxb8.} (20. Rxd4 $2 Rxe6 21. Rxd7+ (21. Bxe6 $2 Nc5 $19) 21... Re7 (21... Bxd7 $2 22. Bxe6 Qc8 23. Bc4 $17) 22. Rxe7+ Qxe7 $19) 20... Nc5 {[%emt 0:00:20]} 21. Rxe8 {[%emt 0:00:07]} Qxe8 {[%emt 0:00:10] [#]} 22. Qc2 {[%emt 0:01:37]} ({White should play} 22. Qa3 $1 $18 Nxg3 23. hxg3 (23. Qxc5 Nf5 $16)) 22... Nxg3 {[%emt 0:00:12]} 23. hxg3 {[%emt 0:00:13] And now b4 would win.} ({Not} 23. fxg3 Qe3+ 24. Qf2 Qxf2+ 25. Kxf2 a5 $17) 23... Bg4 {[%emt 0:00:13]} 24. Nce2 {[%emt 0:02:35] A dynamic duo of knights.} ({White should try} 24. Be2 $18 Bc8 25. b4) 24... Bc7 $2 {[%emt 0:01:22]} ({Better is} 24... a5 $1 $14) 25. b4 {[%emt 0:03:26]} Ne6 {[%emt 0:00:43]} 26. Qe4 {[%emt 0:00:13][%csl LRe6,LRg4]} Nxd4 $2 {[%emt 0:00:00]} (26... Nf4 27. Qxe8 Rxe8 28. gxf4 Bxf4) 27. Qxd4+ {[%emt 0:00:00] Weighted Error Value: White=0.24 (precise) /Black=0.62.  Loses game:     	---       	Black=1      Mistake:       	White=3     	Black=3      Inaccurate:     	White=1     	Black=1      OK:         	White=5     	Black=4      Best:        	White=2     	---        Strong:       	White=2     	---} 1-0

[Event "CIS Master Groups 2024"]
[Site "Vasto"]
[Date "2024.04.10"]
[Round "4.21"]
[White "Jianu, Vlad-Cristian"]
[Black "Favaloro, Andrea"]
[Result "1/2-1/2"]
[ECO "D77"]
[WhiteElo "2491"]
[BlackElo "2412"]
[Annotator "TA"]
[PlyCount "22"]
[EventDate "2024.04.07"]
[EventType "team-tourn"]
[EventCountry "ITA"]
[SourceTitle "playchess.com"]
[Source "ChessBase"]
[SourceQuality "1"]
[TimeControl "40/5400+30:900+30"]

{[%evp 14,22,32,22,2,0,0,0,0,0,-8]} 1. d4 {[%emt 0:00:33]} d5 {[%emt 0:01:49]} 2. Nf3 {[%emt 0:00:07]} Nf6 {[%emt 0:00:31]} 3. g3 {[%emt 0:00:05]} g6 {[%emt 0:00:27]} 4. Bg2 {[%emt 0:00:41]} Bg7 {[%emt 0:00:08]} 5. O-O {[%emt 0:00:06]} O-O {[%emt 0:00:12]} 6. c4 {[%emt 0:01:16]} dxc4 {[%emt 0:00:10]} 7. Na3 {[%emt 0:00:08][%cal Bb1a3,Ba3c4,Bc4e5][%mdl 32]} c5 {[%emt 0:00:12]} 8. Nxc4 {[%emt 0:17:52]} Be6 {[%emt 0:00:23] The position is equal.} 9. Nce5 {[%emt 0:05:40]} cxd4 {[%emt 0:00:11]} 10. Qxd4 {[%emt 0:06:02]} Qxd4 {[%emt 0:00:17]} 11. Nxd4 {[%emt 0:00:07]} Bd5 {[%emt 0:00:04] A rather calm draw.   Weighted Error Value: White=0.05 (flawless) /Black=0.00 (flawless) .  OK:         	---       	Black=1      Best:        	---       	Black=1} 1/2-1/2

[Event "CIS Master Groups 2024"]
[Site "Vasto"]
[Date "2024.04.10"]
[Round "4.22"]
[White "Iturrizaga Bonelli, Eduardo"]
[Black "Yao, Stefano"]
[Result "1/2-1/2"]
[ECO "E05"]
[WhiteElo "2589"]
[BlackElo "2289"]
[Annotator "TA"]
[PlyCount "90"]
[EventDate "2024.04.07"]
[EventType "team-tourn"]
[EventCountry "ITA"]
[SourceTitle "playchess.com"]
[Source "ChessBase"]
[SourceQuality "1"]
[TimeControl "40/5400+30:900+30"]

{[%evp 24,90,-7,-13,14,19,8,0,12,-75,-68,-91,-73,-106,-118,-139,-128,-140,-123,-139,-120,-131,-79,-156,-141,-139,-125,-144,-128,-241,0,0,0,0,0,0,0,-122,-126,-91,0,0,193,195,217,191,179,0,0,0,292,325,411,370,882,67,342,0,0,0,0,0,0,-8,0,0,0,-8,0]} 1. d4 {[%emt 0:02:23]} d5 {[%emt 0:00:46]} 2. c4 {[%emt 0:00:08]} e6 {[%emt 0:00:04]} 3. Nc3 {[%emt 0:00:15]} Nf6 {[%emt 0:00:35]} 4. Nf3 {[%emt 0:01:11]} Be7 {[%emt 0:00:05]} 5. g3 {[%emt 0:02:39]} dxc4 {[%emt 0:09:21]} 6. Bg2 {[%emt 0:02:04]} Nc6 {[%emt 0:07:01]} 7. O-O {[%emt 0:01:48]} O-O {[%emt 0:03:07]} 8. e3 {[%emt 0:14:18]} Rb8 {[%emt 0:13:36] 8...Bd6 is not played anymore.} 9. Qe2 {[%emt 0:14:27]} b5 {[%emt 0:02:03]} 10. Rd1 {[%emt 0:01:23]} Bd7 {[%emt 0:06:28] E05: Open Catalan: 5 Nf3 Be7.} 11. e4 {[%emt 0:04:39]} b4 {[%emt 0:11:12]} 12. Na4 $146 {[%emt 0:01:20]} ({Predecessor:} 12. d5 Na5 13. dxe6 fxe6 14. e5 Ng4 15. Ne4 Qe8 16. h3 Nh6 17. Bxh6 gxh6 {1-0 Pulvett Marin,D (2464)-Fernandez Blazquez,D (2248) Madrid-chT 1819 2018 (14.1)}) 12... Qc8 {[%emt 0:03:38]} ({Black should play} 12... Qe8 $15 13. Bf4 (13. Qxc4 $17)) 13. Bg5 $11 {[%emt 0:06:57]} h6 {[%emt 0:14:24]} 14. Bxf6 {[%emt 0:04:30]} gxf6 {[%emt 0:00:16]} 15. Qe3 {[%emt 0:24:24]} Kg7 {[%emt 0:04:38]} (15... e5 $5 16. Qxh6 Rd8 $11) 16. b3 {[%emt 0:06:41]} (16. d5 $11 {remains equal.}) 16... c3 $17 {[%emt 0:02:02]} 17. Bf1 {[%emt 0:00:05]} a5 {[%emt 0:11:36]} 18. e5 {[%emt 0:01:33]} f5 $1 {[%emt 0:02:25]} 19. h4 {[%emt 0:00:02]} Nd8 {[%emt 0:00:43]} 20. Nc5 {[%emt 0:00:05]} Bxc5 {[%emt 0:01:02]} 21. dxc5 {[%emt 0:00:05]} Nc6 {[%emt 0:00:53]} 22. Kh2 {[%emt 0:04:18]} Ne7 {[%emt 0:02:20]} (22... Qe8 $142 23. Bd3 Ne7) 23. Bc4 {[%emt 0:00:02]} ({Better is} 23. Nd4) 23... Bc6 {[%emt 0:00:22]} 24. Nd4 {[%emt 0:01:11] [#]} Bd5 $1 {[%emt 0:02:21]} 25. Bd3 {[%emt 0:00:02]} Rh8 {[%emt 0:00:56]} 26. h5 {[%emt 0:00:58]} (26. g4 $17 fxg4 27. Qf4) 26... c6 $2 {[%emt 0:00:26]} (26... Qd8 $19 {Hoping for ...Rg8.} 27. Bc2 Rg8) 27. g4 $1 $11 {[%emt 0:00:21]} fxg4 {[%emt 0:00:26]} 28. Rg1 {[%emt 0:00:03]} Kf8 {[%emt 0:00:14]} 29. Rxg4 {[%emt 0:00:06]} Ke8 {[%emt 0:00:25]} 30. a3 {[%emt 0:00:44]} (30. Rag1 $11) 30... Qc7 $17 {[%emt 0:00:44]} 31. axb4 {[%emt 0:00:08]} axb4 {[%emt 0:00:28]} ({Black should try} 31... Rxb4 $17 32. Rag1 Bxb3 33. Nxb3 Rxb3) 32. Rg7 $11 {[%emt 0:01:36]} Kd7 $2 {[%emt 0:00:56]} (32... Qd8 $11) 33. Rxf7 $18 {[%emt 0:01:09]} Rbf8 {[%emt 0:00:23]} 34. Rxf8 {[%emt 0:03:34]} (34. Rg7 Rhg8 35. Rg3 Ra8 (35... Rxg3 36. fxg3 Qb7 37. Kh3 $16) 36. Rxa8 Rxa8 $11) 34... Rxf8 {[%emt 0:00:00]} 35. f4 $2 {[%emt 0:00:37]} (35. Kh3 $18) 35... Rg8 $11 {[%emt 0:00:36]} 36. Be4 {[%emt 0:00:16]} Qb7 $2 {[%emt 0:00:33][%mdl 8192]} (36... Qd8 $11 {and Black is okay.} 37. Bxd5 Nxd5) 37. f5 $18 {[%emt 0:01:21]} Rg5 {[%emt 0:00:52]} 38. fxe6+ {[%emt 0:01:19]} Kc7 $2 {[%emt 0:00:15]} (38... Bxe6 39. Qd3 Bd5 (39... Rxh5+ 40. Kg2 $16) 40. Bxd5 (40. Qh3+ Ke8 $11) 40... cxd5 (40... Rxh5+ $2 41. Kg1 $18) 41. c6+ Nxc6 42. Nxc6 (42. Qh3+ Kc7 $16) 42... Ke8 (42... Qxc6 $2 43. Ra6 $18) (42... Rxh5+ $2 43. Kg3 $18) 43. Qxd5 Rxh5+ 44. Kg2 Qg7+ 45. Kf1 Qf6+ 46. Ke2 (46. exf6 Rxd5 47. Nxb4 Rb5 $18) 46... Rh2+ 47. Kd3 Rd2+ 48. Kc4 Rxd5 49. exf6 Rd6 50. Nxb4 Rxf6 51. Kxc3 h5) 39. Bf3 $2 {[%emt 0:00:34]} (39. Bxd5 $18 Rxh5+ 40. Kg2 Rg5+ 41. Kf2) 39... Qb8 $2 {[%emt 0:00:32][%mdl 8192] [#]} (39... Kb8 $1 $14) 40. Qf4 $2 {[%emt 0:00:38]} (40. Bxd5 $1 $18 {[%cal Oe3f3] aiming for Qf3!} Rxh5+ 41. Kg1 cxd5 (41... Nxd5 $2 {too greedy.} 42. Qf3 $18) 42. Ra7+ Qxa7 43. Nb5+ Kb7 44. Nxa7 Rg5+ 45. Kf2 Kxa7 46. c6+ Ka6 47. c7) 40... Qg8 $11 {[%emt 0:00:25]} 41. Qf7 {[%emt 0:12:18]} Qxf7 {[%emt 0:07:34]} 42. Ra7+ {[%emt 0:00:04]} Kd8 {[%emt 0:01:15]} 43. Ra8+ {[%emt 0:00:14]} Kc7 {[%emt 0:00:36]} 44. Ra7+ {[%emt 0:02:12]} Kd8 {[%emt 0:00:05]} 45. Ra8+ {[%emt 0:02:23]} Kc7 {[%emt 0:00:03]} 1/2-1/2

[Event "CIS Master Groups 2024"]
[Site "Vasto"]
[Date "2024.04.10"]
[Round "4.23"]
[White "Davi, Alessandro"]
[Black "Bertagnolli, Alexander"]
[Result "0-1"]
[ECO "D04"]
[WhiteElo "2210"]
[BlackElo "2333"]
[Annotator "TA"]
[PlyCount "68"]
[EventDate "2024.04.07"]
[EventType "team-tourn"]
[EventCountry "ITA"]
[SourceTitle "playchess.com"]
[Source "ChessBase"]
[SourceQuality "1"]
[TimeControl "40/5400+30:900+30"]

{[%evp 9,67,8,19,20,20,8,11,16,12,-1,7,8,25,22,28,6,12,3,14,15,27,25,89,94,102,77,61,50,110,111,135,27,77,82,231,229,204,87,81,13,9,0,7,0,10,0,0,0,52,0,0,0,0,-72,-72,-83,-32,-556,-506,-29999]} 1. d4 {[%emt 0:00:46]} Nf6 {[%emt 0:00:14]} 2. Nf3 {[%emt 0:00:14]} c5 {[%emt 0:00:09]} 3. e3 {[%emt 0:00:16]} d5 {[%emt 0:00:23]} 4. Nbd2 {[%emt 0:00:56]} Nbd7 {[%emt 0:00:49]} 5. b3 {[%emt 0:02:31]} g6 {[%emt 0:01:58]} 6. Bb2 {[%emt 0:00:28]} Bg7 {[%emt 0:00:15]} 7. Be2 {[%emt 0:03:41]} O-O {[%emt 0:00:47]} 8. O-O {[%emt 0:00:16] The position is equal.} b6 {[%emt 0:01:09]} 9. Ne5 {[%emt 0:04:25]} Nxe5 {[%emt 0:10:16]} 10. dxe5 {[%emt 0:00:06]} Nd7 {[%emt 0:00:26]} 11. f4 {[%emt 0:00:48]} Bb7 {[%emt 0:02:40]} 12. Bf3 {[%emt 0:01:45]} Qc7 {[%emt 0:00:53]} 13. c4 {[%emt 0:07:34]} dxc4 {[%emt 0:02:50]} 14. bxc4 {[%emt 0:05:46]} Rfd8 {[%emt 0:01:25]} 15. Qe2 {[%emt 0:04:53]} f6 {[%emt 0:07:34]} (15... Bc6 $11 {keeps the balance.}) 16. Ne4 $1 $16 {[%emt 0:06:50]} Rac8 {[%emt 0:18:06][%cal Rf6e5]} 17. Rad1 {[%emt 0:13:47]} Bxe4 {[%emt 0:13:49]} 18. Bxe4 {[%emt 0:00:17] exf6 is the strong threat.} e6 {[%emt 0:00:10] Black is weak on the light squares} (18... fxe5 $14 19. Bd5+ Kh8) 19. Rd6 {[%emt 0:22:44]} fxe5 {[%emt 0:07:47]} 20. fxe5 {[%emt 0:01:27]} (20. Rxe6 $16 Nf6 21. Bb1 (21. Bxe5 Qf7 $11)) 20... Nxe5 {[%emt 0:00:35]} (20... Nf8 $1 $11 {remains equal.}) 21. Rxe6 {[%emt 0:01:47] Hoping for Bd5.} Rf8 {[%emt 0:02:19]} (21... Kh8 $16 {might work better.}) 22. Bd5 $18 {[%emt 0:08:22] This pair of bishops is nice.} Kh8 {[%emt 0:01:20]} 23. Rf4 {[%emt 0:00:21]} (23. Rxf8+ $1 $18 Rxf8 24. h4) 23... Rfe8 $16 {[%emt 0:09:14]} 24. Rxe8+ {[%emt 0:09:25]} (24. Rff6 $1 $16 Bxf6 25. Rxf6) 24... Rxe8 $11 {[%emt 0:00:08]} 25. Qf2 {[%emt 0:00:33]} Qe7 {[%emt 0:06:26]} 26. Re4 {[%emt 0:00:26]} Qf6 {[%emt 0:01:32]} 27. Qg3 {[%emt 0:01:44]} h6 {[%emt 0:03:40]} 28. h4 {[%emt 0:01:17]} Kh7 {[%emt 0:00:22] [#]} (28... Qf5 $11) 29. h5 {[%emt 0:00:33]} gxh5 {[%emt 0:00:31]} 30. Rf4 {[%emt 0:00:44]} Qg5 {[%emt 0:00:49]} 31. Qh3 {[%emt 0:00:27] [#]} (31. Be4+ $11 Kg8 32. Bd5+ Kh7 33. Be4+ Kg8 34. Bd5+ Kh8 35. Qf2) 31... Ng4 $1 $17 {[%emt 0:00:54][%cal Og5f4] ( -> ...Qxf4!)} 32. Rf7 {[%emt 0:00:15] [#]} Rxe3 {[%emt 0:00:11]} (32... Re7 $1 $17 {[%cal Re7f7] Threatens to win with ...Rxf7.} 33. Rxe7 Qxe7) 33. Rxg7+ {[%emt 0:01:02][%mdl 8192]} ({White has to play} 33. Qh4 $1 $15 Ne5 (33... Qxh4 34. Rxg7+ Kh8 35. Rxg4+) 34. Qxg5 hxg5 35. Rxg7+ Kxg7 36. Kf2) 33... Qxg7 $19 {[%emt 0:00:07]} 34. Bxg7 {[%emt 0:00:30]} (34. Qxe3 $19 Nxe3 (34... Qxb2 35. Qe4+ Kh8 36. Qe8+ Kg7 37. Qf7+ Kh8 38. Qg8#) 35. Bxg7 Kxg7 36. Bf3) 34... Re1# {[%emt 0:00:01] Never resign too early!   Weighted Error Value: White=0.57/Black=0.20 (precise) .  Loses game:     	White=1     	---        Mistake:       	White=6     	Black=6      OK:         	White=6     	Black=10     Best:        	White=1     	Black=3      Strong:       	White=1     	Black=1} 0-1

[Event "CIS Master Groups 2024"]
[Site "Vasto"]
[Date "2024.04.10"]
[Round "4.24"]
[White "Mazzilli, Piero"]
[Black "Rotondaro, Alberto"]
[Result "0-1"]
[ECO "B93"]
[WhiteElo "2311"]
[BlackElo "2148"]
[Annotator "TA"]
[PlyCount "71"]
[EventDate "2024.04.07"]
[EventType "team-tourn"]
[EventCountry "ITA"]
[SourceTitle "playchess.com"]
[Source "ChessBase"]
[SourceQuality "1"]
[TimeControl "40/5400+30:900+30"]

{[%evp 12,71,14,-14,0,-18,-8,-27,-10,-41,2,-41,-39,-41,-42,-34,33,14,35,29,64,31,47,6,27,27,27,22,56,1,15,0,48,57,100,74,108,66,826,-251,0,-413,-383,-533,-550,-493,-354,-770,-768,-1228,-1428,-1432,-1402,-1352,-1484,-3101,-2710,-3032,-2681,-29976,-29975,-5908]} 1. e4 {[%emt 0:00:14]} c5 {[%emt 0:00:43]} 2. Nf3 {[%emt 0:00:14]} d6 {[%emt 0:00:06]} 3. d4 {[%emt 0:02:04]} cxd4 {[%emt 0:00:07]} 4. Nxd4 {[%emt 0:01:06]} Nf6 {[%emt 0:00:21]} 5. Nc3 {[%emt 0:01:03]} a6 {[%emt 0:01:01]} 6. f4 {[%emt 0:01:54]} g6 {[%emt 0:08:45]} 7. Bd3 {[%emt 0:09:11]} Bg7 {[%emt 0:01:00]} 8. Nf3 {[%emt 0:00:01]} O-O {[%emt 0:04:28]} 9. O-O {[%emt 0:02:18]} Nbd7 {[%emt 0:05:06] Black has an edge.} 10. Qe1 {[%emt 0:12:58]} Nc5 {[%emt 0:04:28]} 11. Qh4 {[%emt 0:05:36]} b5 {[%emt 0:04:53]} 12. a3 {[%emt 0:01:30]} Bb7 {[%emt 0:16:26]} 13. f5 {[%emt 0:04:39]} Nxd3 {[%emt 0:16:05]} (13... e5 $15) 14. cxd3 $14 {[%emt 0:00:30]} Qb6+ {[%emt 0:01:54]} 15. Kh1 {[%emt 0:00:48]} Rfc8 {[%emt 0:04:32]} 16. fxg6 {[%emt 0:21:54]} (16. Ne2 {simplifies} Qd8 17. Nfd4 Bc6 18. Nxc6 Rxc6 19. Bg5) 16... hxg6 {[%emt 0:00:17]} 17. Ng5 {[%emt 0:01:28]} (17. Bh6 {simplifies} Bxh6 18. Qxh6 Qd8 19. Rae1) 17... a5 {[%emt 0:02:23]} 18. Rf3 {[%emt 0:11:03]} b4 {[%emt 0:03:15]} 19. Be3 {[%emt 0:02:09]} Qc7 {[%emt 0:00:20]} 20. Nb5 {[%emt 0:03:40]} (20. Na4 $14) 20... Qd7 $11 {[%emt 0:02:22]} 21. a4 {[%emt 0:06:19] h3 is the strong threat.} Rc2 {[%emt 0:08:46]} (21... Qg4 $11 {might be stronger.} 22. Qf2 b3) 22. h3 $14 {[%emt 0:03:45] Hoping for Raf1.} Ba6 {[%emt 0:03:54]} (22... Rxb2 $2 23. Bd4 $18) 23. Raf1 $1 {[%emt 0:01:00] Black must now prevent Bd4.} Rac8 {[%emt 0:00:25]} (23... Rxb2 $2 24. Bd4 $18) 24. Nd4 {[%emt 0:02:52]} Rxb2 $2 {[%emt 0:01:15][%mdl 8192] [#]} (24... R2c7 $14) 25. Nb5 $4 {[%emt 0:04:04][%mdl 8192]} Rbc2 $2 {[%emt 0:00:41]} (25... Bxb5 $19 26. axb5 Rbc2 (26... Qxb5 $2 27. Rxf6 exf6 28. Qh7+ Kf8 29. Ne6+ fxe6 30. Bh6 $18)) 26. Bd4 $2 {[%emt 0:00:08][%mdl 8192] [#]} (26. Nd4 $1 $11 R2c7 (26... Bxd3 27. Rxf6 exf6 28. Qh7+ Kf8 29. Nde6+ $11) 27. Rxf6 exf6 28. Qh7+ Kf8 29. Nde6+ fxe6 30. Qxg6) 26... Rc1 $1 $19 {[%emt 0:01:11]} 27. Rxc1 {[%emt 0:00:33]} Rxc1+ {[%emt 0:00:07]} 28. Kh2 {[%emt 0:00:01]} b3 {[%emt 0:03:30]} ({Less strong is} 28... Bxb5 29. axb5 Rc8 (29... Qxb5 30. Rxf6 exf6 31. Qh7+ Kf8 32. Bxf6 $16) 30. b6 $19) 29. Qf4 $2 {[%emt 0:01:09]} (29. e5 dxe5 30. Rxf6 exf6 31. Qh7+ Kf8 32. Bb2) 29... Rc2 {[%emt 0:00:55]} 30. e5 {[%emt 0:00:37]} dxe5 {[%emt 0:00:20]} 31. Bxe5 {[%emt 0:00:03]} Bxb5 {[%emt 0:02:02]} 32. axb5 {[%emt 0:00:02]} Qxb5 {[%emt 0:00:22]} 33. Rf1 {[%emt 0:01:32] [#]} Qxe5 $3 {[%emt 0:00:46][%mdl 512]} 34. Qxe5 {[%emt 0:00:02] [#]} Ng4+ $1 {[%emt 0:00:08][%mdl 512]} 35. hxg4 {[%emt 0:00:03]} (35. Kg3 Nxe5) 35... Bxe5+ {[%emt 0:00:04]} 36. Kh3 {[%emt 0:00:02] Weighted Error Value: White=1.52/Black=0.35.  Loses game:     	---       	Black=1      Missed win:     	White=1     	Black=1      Mistake:       	White=2     	Black=2      Inaccurate:     	White=7     	Black=4      OK:         	White=5     	Black=6      Best:        	White=3     	Black=1      Strong:       	White=1     	Black=1} 0-1